fUSD/lending_fUSD_20240917
["ID","MTS","AMOUNT","RATE_DAILY","PERIOD"]
[338398015,1726583637286,428.88,0.0001254,2]
[338398016,1726583637556,428.88,0.00012544,2]
[338398017,1726583637799,428.88,0.00012547,2]
[338398018,1726583638053,428.88,0.0001255,2]
[338398019,1726583638365,428.88,0.00012554,2]
[338398020,1726583638639,428.88,0.00012557,2]
[338398023,1726583639253,428.88,0.0001256,2]
[338398024,1726583639306,428.88,0.00012563,2]
[338398025,1726583639528,428.88,0.00012567,2]
[338398026,1726583639764,428.88,0.0001257,2]
[338398027,1726583639975,428.88,0.00012573,2]
[338398028,1726583640201,428.88,0.00012577,2]
[338398029,1726583640490,428.88,0.0001258,2]
[338398030,1726583640669,428.88,0.00012583,2]
[338398031,1726583640923,428.88,0.00012587,2]
[338398033,1726583641188,428.88,0.0001259,2]
[338398034,1726583641400,428.88,0.00012593,2]
[338398035,1726583641618,428.88,0.00012596,2]
[338398036,1726583641892,428.88,0.000126,2]
[338398037,1726583642072,428.88,0.00012603,2]
[338398041,1726583644977,697.49,0.00011616,2]
[338398117,1726583703071,166.08,0.00010959,2]
[338398230,1726583795227,311.58,0.00012558,2]
[338398296,1726583869068,250.0,0.00012495,2]
[338398453,1726584015440,512.0,0.00012443,2]
[338398480,1726584034036,169.46,0.00012402,2]
[338398573,1726584119782,28784.57,0.00012419,2]
[338398586,1726584131328,208.14,0.0001232,2]
[338398600,1726584142501,500.0,0.00015,30]
[338398601,1726584142849,500.0,0.00015,30]
[338398602,1726584143253,500.0,0.00015,30]
[338398603,1726584143612,500.0,0.00015,30]
[338398604,1726584144052,500.0,0.00015,30]
[338398605,1726584145054,500.0,0.00015,30]
[338398607,1726584145352,500.0,0.00015,30]
[338398609,1726584145438,707.38540224,0.00015,30]
[338398610,1726584145814,697.18224908,0.00015,30]
[338398613,1726584150567,500.0,0.00015,30]
[338398614,1726584150889,500.0,0.00015,30]
[338398615,1726584151528,504.71006745,0.00015,30]
[338398618,1726584152907,506.7054449,0.00015,30]
[338398656,1726584207560,662.61,0.00010403,2]
[338398667,1726584224291,1264.446442,0.00015,30]
[338398678,1726584233554,250.0,0.00012286,2]
[338398699,1726584250956,161.71,0.00012251,2]
[338398722,1726584277556,23900.0,0.00012185,2]
[338398732,1726584288239,2000.0,0.00012161,2]
[338398752,1726584309639,150.0,0.00012603,2]
[338398803,1726584358786,3494.93,0.00012351,2]
[338398857,1726584399762,1053.21,0.0001229,2]
[338398863,1726584406776,250.0,0.00012295,2]
[338398911,1726584437538,191.4,0.00010959,2]
[338398979,1726584488930,171.79,0.00012349,2]
[338399063,1726584545078,250.0,0.00012349,2]
[338399088,1726584567038,590.4,0.00012266,2]
[338399094,1726584568999,10732.24,0.00012271,2]
[338399115,1726584586156,238.81,0.00012266,2]
[338399179,1726584632319,-300.0,0.00012643,2]
[338399180,1726584632328,-662.61,0.00012666,2]
[338399181,1726584632338,-13099.09905211,0.000127,2]
[338399182,1726584632350,-5702.00877593,0.000127,2]
[338399183,1726584632363,-804.052,0.0001274,2]
[338399184,1726584632372,-187.13,0.0001274,2]
[338399185,1726584632382,-247.06014866,0.00012799,2]
[338399186,1726584632392,-150.0,0.00012799,2]
[338399187,1726584632402,-808.8657,0.000128,2]
[338399188,1726584632411,-32462.07435657,0.000128,2]
[338399189,1726584632423,-6543.75284343,0.000128,2]
[338399190,1726584632433,-42689.54533365,0.000128,2]
[338399191,1726584632456,-20907.10922878,0.000128,2]
[338399192,1726584632467,-5479.43133757,0.000128,2]
[338399193,1726584632477,-7968.66622545,0.000128,2]
[338399194,1726584632489,-19014.00000079,0.000128,2]
[338399195,1726584632510,-749.58874577,0.000128,2]
[338399196,1726584632533,-4713.4,0.000128,2]
[338399197,1726584632763,505.52,0.00012339,2]
[338399208,1726584638254,-265.74,0.00012633,2]
[338399209,1726584638264,-265.74,0.0001269,2]
[338399210,1726584638273,-265.74,0.0001269,2]
[338399211,1726584638282,-265.74,0.0001269,2]
[338399212,1726584638292,-265.74,0.0001269,2]
[338399213,1726584638301,-265.74,0.0001269,2]
[338399214,1726584638310,-265.74,0.0001269,2]
[338399215,1726584638319,-265.74,0.0001269,2]
[338399216,1726584638328,-265.74,0.0001273,2]
[338399217,1726584638337,-265.74,0.0001279,2]
[338399218,1726584638347,-57779.97103275,0.000128,2]
[338399219,1726584638359,-5696.0751405,0.000128,2]
[338399220,1726584638370,-343.85707999,0.000128,2]
[338399221,1726584638385,-3734.44177475,0.000128,2]
[338399222,1726584638397,-913.3586,0.000128,2]
[338399223,1726584638411,-500.0,0.00012895,2]
[338399224,1726584638421,-500.0,0.00012896,2]
[338399225,1726584638430,-2881.87,0.00012896,2]
[338399226,1726584638440,-499.99,0.00012896,2]
[338399227,1726584638450,-299.99,0.00012896,2]
[338399228,1726584638459,-500.0,0.00012896,2]
[338399229,1726584638468,-500.0,0.00012896,2]
[338399230,1726584638478,-150.99,0.00012896,2]
[338399231,1726584638487,-1500.0,0.000129,2]
[338399232,1726584638496,-1500.0,0.000129,2]
[338399233,1726584638506,-1500.0,0.000129,2]
[338399234,1726584638516,-1500.0,0.000129,2]
[338399235,1726584638526,-1500.0,0.000129,2]
[338399236,1726584638535,-1500.0,0.000129,2]
[338399237,1726584638544,-978.10688704,0.000129,2]
[338399238,1726584638556,-521.89311296,0.000129,2]
[338399239,1726584638565,-684.40688704,0.000129,2]
[338399274,1726584638866,-815.59311296,0.000129,2]
[338399276,1726584638877,-1789.99,0.000129,2]
[338399278,1726584638897,-533.30635912,0.000129,2]
[338399280,1726584638908,-795.2682055,0.000129,2]
[338399283,1726584638919,-171.42543538,0.000129,2]
[338399284,1726584638928,-777.94886218,0.000129,2]
[338399286,1726584638936,-58.00867682,0.00012944,2]
[338399288,1726584638947,-675.54813812,0.00012944,2]
[338399290,1726584638958,-18067.5510131,0.00012944,2]
[338399292,1726584638967,-500.0,0.00012973,2]
[338399294,1726584638976,-167.0,0.00012977,2]
[338399296,1726584638985,-4098.83754637,0.00013,2]
[338399298,1726584638996,-9553.154996,0.00013,2]
[338399300,1726584639007,-9084.2900005,0.00013,2]
[338399302,1726584639018,-13724.235,0.00013,2]
[338399305,1726584639031,-1384.75,0.00013,2]
[338399307,1726584639042,-5915.5,0.00013,2]
[338399309,1726584639053,-8707.565367,0.00013,2]
[338399311,1726584639064,-2111.13867946,0.00013,2]
[338399314,1726584639082,-399.35491428,0.00013,2]
[338399316,1726584639094,-25932.84952248,0.00013,2]
[338399318,1726584639105,-14913.977862,0.00013,2]
[338399320,1726584639115,-2249.76838887,0.00013,2]
[338399322,1726584639126,-1759.48135128,0.00013,2]
[338399326,1726584639155,-556.60314999,0.00013,2]
[338399328,1726584639166,-3000.56416943,0.00013,2]
[338399330,1726584639180,-701.89106013,0.00013,2]
[338399332,1726584639192,-5065.1991,0.00013,2]
[338399334,1726584639203,-23634.8659421,0.00013,2]
[338399366,1726584640451,-1905.0,0.00013,2]
[338399367,1726584640463,-15064.79975001,0.00013,2]
[338399368,1726584640522,-673.11681975,0.00013,2]
[338399369,1726584640535,-604.99167786,0.00013,2]
[338399370,1726584640547,-706.185,0.00013,2]
[338399371,1726584640560,-21004.66222878,0.00013,2]
[338399475,1726584645054,-60292.99999999,0.00013,2]
[338399476,1726584645091,-1109.71797932,0.00013,2]
[338399479,1726584646252,-4084.3711218,0.00013,2]
[338399482,1726584646385,-6020.8,0.00013,2]
[338399483,1726584646396,-498.29912691,0.00013,2]
[338399484,1726584646435,-435.70846491,0.00013,2]
[338399485,1726584646459,-296.03240949,0.00013,2]
[338399487,1726584646585,-9014.9,0.00013,2]
[338399489,1726584646597,-13749.53409936,0.00013,2]
[338399718,1726584752893,677.92,0.00010799,2]
[338399806,1726584822482,150.0,0.00015,30]
[338399821,1726584833628,18487.77,0.00012598,2]
[338399865,1726584876809,3882.29,0.00012518,2]
[338399902,1726584926083,250.0,0.00012549,2]
[338399918,1726584944224,1500.0,0.00012568,2]
[338399928,1726584957161,1050.0,0.00011,2]
[338399970,1726584993532,200.0,0.00014925,30]
[338399971,1726584993575,200.0,0.00014925,30]
[338399972,1726584993643,200.0,0.00014925,30]
[338399973,1726584993701,242.81944379,0.00014925,30]
[338399987,1726585008977,500.0,0.00012536,2]
[338400035,1726585067888,-500.0,0.0001513,30]
[338400036,1726585067912,-500.0,0.0001513,30]
[338400062,1726585109519,-500.0,0.0001513,30]
[338400063,1726585109543,-500.0,0.0001513,30]
[338400068,1726585115755,-500.0,0.0001513,30]
[338400069,1726585115780,-500.0,0.0001513,30]
[338400079,1726585127137,-500.0,0.0001513,30]
[338400080,1726585127163,-500.0,0.0001513,30]
[338400115,1726585171758,252.76,0.00012445,2]
[338400118,1726585174864,1000.0,0.0001245,2]
[338400253,1726585297505,675.27,0.00010545,2]
[338400318,1726585339828,500.0,0.00015,30]
[338400319,1726585340205,500.0,0.00015,30]
[338400320,1726585340595,500.0,0.00015,30]
[338400321,1726585340696,500.0,0.00015,30]
[338400340,1726585353996,250.0,0.00012399,2]
[338400359,1726585375767,365.1,0.0001245,2]
[338400371,1726585381822,250.0,0.00012399,2]
[338400545,1726585504648,-718.5519,0.000127,2]
[338400546,1726585504676,-1918.5294,0.000128,2]
[338400547,1726585504708,-675.27,0.00012809,2]
[338400548,1726585504737,-500.0,0.00012896,2]
[338400549,1726585504766,-150.0,0.00012899,2]
[338400550,1726585504798,-300.0,0.00012899,2]
[338400551,1726585504827,-37839.8864,0.000129,2]
[338400552,1726585504857,-2097.7623,0.000129,2]
[338400556,1726585508142,173.84,0.00010959,2]
[338400622,1726585566137,-11509.0,0.000127,5]
[338400682,1726585632997,-212.60733183,0.00013,15]
[338400721,1726585668741,170.98,0.00010959,2]
[338400828,1726585764346,252.76,0.00012572,2]
[338400847,1726585779691,224.43,0.00012572,2]
[338400855,1726585784949,3643.73,0.00012572,2]
[338400910,1726585831502,-250.0,0.00012677,2]
[338400911,1726585831512,-150.0,0.00012899,2]
[338400912,1726585831521,-2678.55932045,0.000129,2]
[338400913,1726585831533,-136.07627955,0.000129,2]
[338400914,1726585831543,-125.07950212,0.000129,2]
[338400915,1726585831555,-517.85068696,0.000129,2]
[338400931,1726585832227,-1609.32281092,0.000129,2]
[338400932,1726585832236,-4758.962032,0.000129,2]
[338400933,1726585832246,-7500.0,0.000129,2]
[338400934,1726585832256,-2985.11515708,0.000129,2]
[338400935,1726585832267,-3185.02759438,0.000129,2]
[338400936,1726585832279,-10307.19120225,0.000129,2]
[338400937,1726585832289,-241.61366286,0.000129,2]
[338400938,1726585832299,-500.0,0.00012973,2]
[338400939,1726585832308,-157.33,0.0001299,2]
[338400940,1726585832317,-499.99,0.0001299,2]
[338400941,1726585832327,-157.33,0.0001299,2]
[338400942,1726585832338,-157.33,0.0001299,2]
[338400943,1726585832348,-500.0,0.00012999,2]
[338400944,1726585832358,-500.0,0.00012999,2]
[338400945,1726585832369,-500.0,0.00012999,2]
[338400946,1726585832378,-2134.29403009,0.00012999,2]
[338400947,1726585832387,-500.0,0.00012999,2]
[338400948,1726585832397,-337.415803,0.00012999,2]
[338400949,1726585832407,-500.0,0.00012999,2]
[338400950,1726585832416,-500.0,0.00012999,2]
[338400951,1726585832426,-369.45606584,0.00012999,2]
[338400952,1726585832435,-500.0,0.00012999,2]
[338400953,1726585832445,-500.0,0.00012999,2]
[338400954,1726585832454,-471.36889925,0.00012999,2]
[338400955,1726585832464,-500.0,0.00012999,2]
[338400956,1726585832475,-500.0,0.00012999,2]
[338400957,1726585832484,-500.0,0.00012999,2]
[338400958,1726585832495,-500.0,0.00012999,2]
[338400959,1726585832506,-500.0,0.00012999,2]
[338400960,1726585832516,-500.0,0.00012999,2]
[338400961,1726585832526,-500.0,0.00012999,2]
[338400962,1726585832535,-365.0,0.00012999,2]
[338400963,1726585832545,-500.0,0.00012999,2]
[338400964,1726585832554,-500.0,0.00012999,2]
[338400965,1726585832564,-500.0,0.00012999,2]
[338400966,1726585832574,-226043.69936793,0.00013,2]
[338400967,1726585832586,-1117.22136038,0.00013,2]
[338400968,1726585832597,-2375.16069498,0.00013,2]
[338400969,1726585832610,-3244.15518752,0.00013,2]
[338400970,1726585832627,-4318.1251668,0.00013,2]
[338400971,1726585832638,-4054.52126582,0.00013,2]
[338400972,1726585832650,-4796.58478385,0.00013,2]
[338400973,1726585832661,-2392.3966544,0.00013,2]
[338400974,1726585832672,-450.037073,0.00013,2]
[338400975,1726585832684,-6077.96519235,0.00013,2]
[338400976,1726585832696,-1074.32,0.00013,2]
[338400977,1726585832708,-3099.91875805,0.00013,2]
[338400978,1726585832720,-368.7704374,0.00013,2]
[338400979,1726585832733,-11699.84907785,0.00013,2]
[338400980,1726585832769,-4066.53555777,0.00013,2]
[338400981,1726585832781,-388.88750137,0.00013,2]
[338400982,1726585832792,-39193.38028386,0.00013,2]
[338400983,1726585832804,-273.84299446,0.00013,2]
[338400984,1726585832816,-5003.70250805,0.00013,2]
[338400985,1726585832828,-4250.50142563,0.00013,2]
[338400986,1726585832840,-3206.11771593,0.00013,2]
[338400987,1726585832874,-13608.47805228,0.00013,2]
[338400988,1726585832886,-1875.42835547,0.00013,2]
[338400989,1726585832898,-297.99594133,0.00013,2]
[338401000,1726585837447,-767.54721912,0.00013,2]
[338401001,1726585837459,-16602.28958187,0.00013,2]
[338401002,1726585837470,-55498.09177121,0.00013,2]
[338401003,1726585837481,-133903.0,0.00013,2]
[338401084,1726585838524,-28119.1141531,0.00013,2]
[338401087,1726585838535,-1173.65274454,0.00013,2]
[338401110,1726585838762,-4797.29027307,0.00013,2]
[338401113,1726585838789,-435.35898496,0.00013,2]
[338401115,1726585838800,-73683.67107611,0.00013,2]
[338401118,1726585838812,-14115.66504,0.00013,2]
[338401119,1726585838823,-61171.32693305,0.00013,2]
[338401120,1726585838834,-303.35364713,0.00013,2]
[338401121,1726585838845,-280.407,0.00013,2]
[338401123,1726585838857,-6904.82972179,0.00013,2]
[338401126,1726585838871,-2074.50000001,0.00013,2]
[338401128,1726585838884,-363.60613795,0.00013,2]
[338401129,1726585838903,-257.82237684,0.00013,2]
[338401130,1726585838914,-1041.07666733,0.00013,2]
[338401131,1726585838926,-368.6898118,0.00013,2]
[338401132,1726585838937,-716.53939924,0.00013,2]
[338401133,1726585838968,-21049.79701956,0.00013,2]
[338401134,1726585838980,-7544.50302701,0.00013,2]
[338401135,1726585838991,-486.81726003,0.00013,2]
[338401136,1726585839002,-524.85669294,0.00013,2]
[338401137,1726585839014,-301.11415239,0.00013,2]
[338401138,1726585839025,-426.35735425,0.00013,2]
[338401139,1726585839036,-565.67497263,0.00013,2]
[338401140,1726585839047,-4538.33381839,0.00013,2]
[338401141,1726585839059,-604.33275941,0.00013,2]
[338401142,1726585839078,-10441.17998013,0.00013,2]
[338401143,1726585839089,-200604.30330072,0.00013,2]
[338401144,1726585839101,-4185.85526465,0.00013,2]
[338401145,1726585839111,-340275.62177159,0.00013,2]
[338401155,1726585839828,-26562.30521915,0.00013,2]
[338401156,1726585839839,-1289.90576999,0.00013,2]
[338401157,1726585839851,-3602.1068233,0.00013,2]
[338401158,1726585839871,-13256.87732019,0.00013,2]
[338401159,1726585839883,-7759.32294957,0.00013,2]
[338401160,1726585839894,-1226.66149548,0.00013,2]
[338401161,1726585839905,-1819.99999776,0.00013,2]
[338401162,1726585839917,-315.3343428,0.00013,2]
[338401163,1726585839952,-559220.97541036,0.00013,2]
[338401164,1726585839964,-202.0,0.00013,2]
[338401165,1726585839977,-500.0,0.00013,2]
[338401166,1726585839987,-500.0,0.00013,2]
[338401167,1726585839996,-5822606.88434212,0.00013,2]
[338401168,1726585840009,-313935.96497659,0.00013,2]
[338401169,1726585840020,-49450.0,0.00013,2]
[338401170,1726585840032,-228795.93175319,0.00013,2]
[338401171,1726585840043,-13468.35059889,0.00013,2]
[338401172,1726585840075,-202.84831938,0.000129,2]
[338401173,1726585840085,-103.70383812,0.00013,2]
[338401174,1726585840096,-1730.32425122,0.00013,2]
[338401175,1726585840108,-10352.58655339,0.00013,2]
[338401176,1726585840128,-914.585,0.00013,2]
[338401177,1726585840140,-608.88,0.00013,2]
[338401178,1726585840151,-9122.74235,0.00013,2]
[338401179,1726585840162,-404.18817747,0.00013,2]
[338401199,1726585843955,-641.85958326,0.00012999,2]
[338401202,1726585843984,-425.28743179,0.00012999,2]
[338401204,1726585843994,-11623.94500111,0.00013,2]
[338401206,1726585844006,-12178.28593014,0.00013,2]
[338401209,1726585844017,-11072.78688,0.00013,2]
[338401211,1726585844028,-388.02997,0.00013,2]
[338401213,1726585844039,-473.3996957,0.00013,2]
[338401215,1726585844051,-3179.282196,0.00013,2]
[338401217,1726585844063,-302.23,0.00013,2]
[338401219,1726585844074,-300.1,0.00013,2]
[338401222,1726585844085,-307.38558639,0.00013,2]
[338401224,1726585844098,-274.264,0.00013,2]
[338401226,1726585844109,-309.865,0.00013,2]
[338401228,1726585844124,-186900.0,0.00013,2]
[338401231,1726585844135,-647.46735558,0.00013,2]
[338401234,1726585844146,-659.44059965,0.00013,2]
[338401237,1726585844167,-470.77429379,0.00013,2]
[338401239,1726585844179,-5203.47580105,0.00013,2]
[338401241,1726585844190,-2057.28,0.00013,2]
[338401243,1726585844202,-392.857998,0.00013,2]
[338401246,1726585844214,-733.27018011,0.00013,2]
[338401248,1726585844226,-14829.77004963,0.00013,2]
[338401250,1726585844238,-1045.14,0.00013,2]
[338401262,1726585844344,-357435.54511704,0.00013,2]
[338401264,1726585844357,-875.16,0.00013,2]
[338401267,1726585844372,-31386.70792399,0.00013,2]
[338401269,1726585844384,-652551.92249939,0.00013,2]
[338401271,1726585844395,-827.37773051,0.00013,2]
[338401273,1726585844406,-536.28001313,0.00013,2]
[338401275,1726585844417,-30000.0,0.00013,2]
[338401285,1726585845415,-8563.99436159,0.00013,2]
[338401286,1726585845427,-1465.89092279,0.00013,2]
[338401288,1726585845489,-305.0,0.00013,2]
[338401289,1726585845501,-2192.36880359,0.00013,2]
[338401290,1726585845513,-515.25,0.00013,2]
[338401291,1726585845524,-606.13570382,0.00013,2]
[338401292,1726585845572,-1073.61091901,0.00013,2]
[338401293,1726585845584,-1408.82174182,0.00013,2]
[338401294,1726585845595,-3044.8275,0.00013,2]
[338401295,1726585845608,-5000.0,0.00013,2]
[338401296,1726585845624,-186900.0,0.00013,2]
[338401297,1726585845636,-1138.28203649,0.00013,2]
[338401298,1726585845647,-1289.4108312,0.00013,2]
[338401299,1726585845659,-4337.18899245,0.00013,2]
[338401300,1726585845671,-1033.59720923,0.00013,2]
[338401301,1726585845683,-1568.92074396,0.00013,2]
[338401302,1726585845696,-690.60504577,0.00013,2]
[338401303,1726585845709,-293.72448332,0.00013,2]
[338401304,1726585845720,-837.1615839,0.00013,2]
[338401305,1726585845732,-926.66902096,0.00013,2]
[338401306,1726585845751,-1221.72,0.00013,2]
[338401307,1726585845763,-456.80005735,0.00013,2]
[338401308,1726585845775,-257354.74939508,0.00013,2]
[338401309,1726585845788,-4506.06258621,0.00013,2]
[338401310,1726585845800,-1710.75555846,0.00013,2]
[338401311,1726585845811,-1645.40990923,0.00013,2]
[338401312,1726585845823,-789.18618,0.00013,2]
[338401322,1726585846044,-9564.89378487,0.00013,2]
[338401323,1726585846056,-3810.0852332,0.00013,2]
[338401324,1726585846069,-1400279.46208877,0.00013,2]
[338401325,1726585846079,-1100.0,0.00013,2]
[338401326,1726585846089,-177.48548491,0.00013,2]
[338401327,1726585846099,-470.90211744,0.00013,2]
[338401328,1726585846109,-841.67,0.00013,2]
[338401329,1726585846119,-1099.55,0.00013,2]
[338401330,1726585846129,-2537.17,0.00013,2]
[338401331,1726585846138,-9823.24299654,0.00013,2]
[338401332,1726585846148,-4047.02,0.00013,2]
[338401333,1726585846158,-1930.0,0.000131,2]
[338401334,1726585846168,-299.99,0.000131,2]
[338401335,1726585846177,-16477.33395362,0.00013122,2]
[338401336,1726585846187,-10000.0,0.00013207,2]
[338401337,1726585846196,-422.61,0.000133,2]
[338401338,1726585846207,-16477.33395362,0.00013344,2]
[338401339,1726585846217,-167.0,0.00013349,2]
[338401340,1726585846227,-422.61,0.000134,2]
[338401341,1726585846236,-288.0,0.00013414,2]
[338401342,1726585846246,-200.0,0.00013534,2]
[338401343,1726585846256,-16477.33395362,0.00013567,2]
[338401344,1726585846266,-241.61366286,0.00013661,2]
[338401345,1726585846276,-455.58,0.00013699,2]
[338401346,1726585846285,-150.01,0.00013699,2]
[338401347,1726585846295,-2751.0,0.00013699,2]
[338401348,1726585846306,-200.0,0.00013699,2]
[338401349,1726585846315,-1631.217,0.0001376,2]
[338401350,1726585846325,-3967.186,0.0001376,2]
[338401351,1726585846335,-150.0,0.0001376,2]
[338401352,1726585846345,-167.0,0.00013763,2]
[338401353,1726585846354,-16477.33395362,0.00013789,2]
[338401354,1726585846363,-5001.98,0.000138,2]
[338401355,1726585846373,-20868.78902586,0.000138,2]
[338401356,1726585846384,-270.462826,0.000138,2]
[338401357,1726585846396,-1748.9835148,0.000138,2]
[338401358,1726585846445,-6646.89595268,0.000138,2]
[338401359,1726585846457,-2635.15652636,0.000138,2]
[338401360,1726585846468,-432.87434618,0.000138,2]
[338401362,1726585847217,2904.0,0.000117,5]
[338401364,1726585848470,300.0,0.000123,4]
[338401366,1726585850311,700.0,0.000124,4]
[338401369,1726585852425,1100.0,0.000125,4]
[338401372,1726585854536,1500.0,0.000126,4]
[338401410,1726585878271,670.24,0.00011756,2]
[338401412,1726585878981,-500.0,0.0001513,30]
[338401413,1726585879007,-500.0,0.0001513,30]
[338401415,1726585879032,-500.0,0.0001513,30]
[338401416,1726585879059,-500.0,0.0001513,30]
[338401417,1726585879091,-500.0,0.0001513,30]
[338401418,1726585879117,-948.53297134,0.0001513,30]
[338401419,1726585879145,-500.0,0.0001513,30]
[338401420,1726585879171,-500.0,0.0001513,30]
[338401421,1726585879196,-500.0,0.0001513,30]
[338401422,1726585879221,-500.0,0.0001513,30]
[338401423,1726585879247,-500.0,0.0001513,30]
[338401424,1726585879274,-500.0,0.0001513,30]
[338401425,1726585879302,-500.0,0.0001513,30]
[338401426,1726585879329,-500.0,0.0001513,30]
[338401427,1726585879355,-500.0,0.0001513,30]
[338401428,1726585879381,-500.0,0.0001513,30]
[338401429,1726585879407,-500.0,0.0001513,30]
[338401430,1726585879433,-500.0,0.0001513,30]
[338401431,1726585879459,-500.99008545,0.0001513,30]
[338401432,1726585879486,-50.47694321,0.0001513,30]
[338401615,1726586003098,11208.0,0.00011,5]
[338401653,1726586034919,3060.382,0.000126,2]
[338401674,1726586059971,176.52,0.00010959,2]
[338401779,1726586318474,6062.0,0.00011,5]
[338401780,1726586381595,2863.0,0.00011,5]
[338401781,1726586426435,667.96,0.00010891,2]
[338401787,1726586550116,-1900.0,0.000127,4]
[338401788,1726586550141,-164.06,0.00012752,2]
[338401789,1726586550165,-250.0,0.00012774,2]
[338401790,1726586550191,-300.0,0.000128,4]
[338401791,1726586550214,-5615.52,0.00012881,2]
[338401792,1726586550237,-840.0,0.00012895,2]
[338401793,1726586550259,-150.0,0.00012899,2]
[338401794,1726586550282,-300.0,0.00012899,2]
[338401795,1726586550302,-2480.42,0.000129,2]
[338401796,1726586658785,160.74,0.00010959,2]
[338401804,1726586761197,1050.0,0.00011,2]
[338401805,1726586764067,819.95,0.00010959,2]
[338401815,1726586939197,667.31,0.00010649,2]
[338401821,1726586970203,292.08,0.00012587,2]
[338401826,1726587016746,1000.0,0.00012437,2]
[338401837,1726587031603,-250.0,0.00012826,2]
[338401838,1726587031614,-186.64173545,0.00012869,2]
[338401839,1726587031627,-113.35826455,0.00012869,2]
[338401840,1726587031636,-8122.99746887,0.0001287,2]
[338401841,1726587031648,-842.95939081,0.0001287,2]
[338401842,1726587031660,-1566.51949423,0.0001287,2]
[338401843,1726587031671,-754.28732234,0.0001287,2]
[338401844,1726587031681,-250.0,0.00012878,2]
[338401845,1726587031691,-150.0,0.00012899,2]
[338401846,1726587031700,-5282.55007079,0.000129,2]
[338401847,1726587031712,-236.78322921,0.000129,2]
[338401848,1726587031722,-451.55145362,0.000129,2]
[338401849,1726587031838,-1131.15926882,0.000129,2]
[338401850,1726587031851,-4234.62417756,0.000129,2]
[338401851,1726587031861,-2002.18798979,0.000129,2]
[338401852,1726587031873,-1837.68576623,0.000129,2]
[338401853,1726587031885,-2084.775,0.000129,2]
[338401855,1726587031897,-3973.28613595,0.000129,2]
[338401857,1726587031909,-17569.31666555,0.000129,2]
[338401859,1726587031921,-9953.30570806,0.000129,2]
[338401862,1726587031934,-16010.19923442,0.000129,2]
[338401864,1726587031945,-205.01068911,0.000129,2]
[338401866,1726587031955,-342.41565211,0.000129,2]
[338401868,1726587031964,-1319.01189754,0.000129,2]
[338401870,1726587031974,-298.23516989,0.000129,2]
[338401872,1726587031984,-202.84831938,0.000129,2]
[338401874,1726587031994,-667.31,0.00012913,2]
[338401876,1726587032004,-1000.0,0.0001297,2]
[338401878,1726587032014,-1429.2544849,0.0001297,2]
[338401880,1726587032024,-151.75,0.0001299,2]
[338401882,1726587032034,-179.31398523,0.0001299,2]
[338401885,1726587032045,-179.31398523,0.0001299,2]
[338401887,1726587032055,-500.0,0.00012999,2]
[338401889,1726587032065,-426.26321103,0.00012999,2]
[338401891,1726587032079,-150.0,0.00012999,2]
[338401893,1726587032089,-341.33001194,0.00013,2]
[338401895,1726587032102,-1425.76150624,0.00013,2]